[Event "31st MPL National U18G Chess-ch 2022"]
[Site "Pollachi"]
[Date "2022.04.18"]
[Round "2.4"]
[White "Rindhiya V"]
[Black "Rosewe M"]
[Result "1-0"]
[ECO "C14"]
[WhiteElo "1949"]
[BlackElo "1293"]
[Annotator "TA"]
[PlyCount "83"]
[EventDate "2022.04.18"]
[EventCountry "IND"]
[SourceTitle "playchess.com"]
[Source "ChessBase"]
[SourceQuality "1"]
[TimeControl "5400+30"]

{[%evp 22,83,21,10,8,4,51,22,22,-8,-8,-3,0,0,31,33,34,35,41,44,103,8,8,6,69,63,69,68,68,59,68,20,39,20,24,21,45,31,49,34,43,0,0,0,3,0,854,851,855,855,818,813,1529,1346,1462,1226,1370,1162,29987,29988,29988,29987,29991,29992]} 1. e4 {[%emt 0:00:02]} e6 {[%emt 0:00:17]} 2. d4 {[%emt 0:00:05]} d5 {[%emt 0:00:05]} 3. Nc3 {[%emt 0:00:04]} Nf6 {[%emt 0:00:14]} 4. Bg5 {[%emt 0:00:04]} Be7 {[%emt 0:00:22]} 5. e5 {[%emt 0:00:10]} Nfd7 {[%emt 0:00:18]} 6. Bxe7 {[%emt 0:00:07]} Qxe7 {[%emt 0:00:05]} 7. f4 {[%emt 0:00:15]} a6 {[%emt 0:00:22]} 8. Nf3 {[%emt 0:00:09]} c5 {[%emt 0:00:32]} 9. dxc5 {[%emt 0:02:52]} Nc6 {[%emt 0:00:53]} 10. Bd3 {[%emt 0:03:12]} Nxc5 {[%emt 0:02:01]} 11. O-O {[%emt 0:16:29]} Nxd3 {[%emt 0:04:12]} 12. cxd3 {[%emt 0:04:47]} O-O {[%emt 0:06:02] C14: French: Classical System: 4 Bg5 Be7 main line.} 13. d4 {[%emt 0:00:58]} f6 {[%emt 0:05:32]} (13... Bd7 $11) 14. Qd2 {[%emt 0:12:28]} fxe5 {[%emt 0:04:55] The position is equal.} 15. fxe5 {[%emt 0:08:56]} Bd7 {[%emt 0:03:11] [#]} 16. Rac1 $146 {[%emt 0:03:22]} ({Predecessor:} 16. Na4 Nxe5 17. Nxe5 Bxa4 18. b3 Bb5 19. Rfe1 Rf5 20. Rac1 a5 21. a4 Ba6 22. Qxa5 {1-0 (33) Babiy,A-Shapoval,A (2304) Kiev 2004}) 16... Rac8 {[%emt 0:06:36]} 17. h3 {[%emt 0:16:18]} b5 {[%emt 0:14:50]} 18. Ne2 {[%emt 0:10:28]} Qb4 {[%emt 0:18:27][%cal Of8f3] [#] Strongly threatening ...Rxf3!} 19. Rc3 {[%emt 0:02:37]} Qe7 {[%emt 0:10:14]} 20. Rfc1 {[%emt 0:00:51]} Nb4 {[%emt 0:02:39]} (20... a5 $14) 21. b3 {[%emt 0:05:06]} (21. Rc7 $16) 21... Rxc3 $11 {[%emt 0:01:57]} 22. Rxc3 {[%emt 0:02:26]} Rc8 {[%emt 0:02:10] Prevents Rc7.} (22... Nc6 $11) 23. Rxc8+ $1 $14 {[%emt 0:02:55]} Bxc8 {[%emt 0:00:06]} 24. Nf4 {[%emt 0:01:30]} Nc6 {[%emt 0:02:17]} 25. Nd3 {[%emt 0:01:03]} a5 {[%emt 0:05:18]} 26. Nc5 {[%emt 0:01:39]} (26. g4 $14) 26... h6 {[%emt 0:01:12]} 27. Qd3 {[%emt 0:01:47]} b4 {[%emt 0:02:17]} 28. Qb5 {[%emt 0:00:31]} Qc7 {[%emt 0:03:14]} 29. Kf2 {[%emt 0:01:31]} Bd7 {[%emt 0:01:01]} 30. Nxd7 {[%emt 0:02:09]} Qxd7 {[%emt 0:00:12]} 31. Ke3 {[%emt 0:00:17]} Qc7 {[%emt 0:01:24]} 32. Qc5 {[%emt 0:00:01]} Qd7 {[%emt 0:00:48]} 33. Ne1 {[%emt 0:01:09]} Qe7 $2 {[%emt 0:01:30][%mdl 8192] [#]} 34. Qxc6 $18 {[%emt 0:00:27]} Qg5+ {[%emt 0:00:16]} 35. Kf2 {[%emt 0:00:25]} Qh4+ {[%emt 0:01:00]} 36. Kf1 {[%emt 0:00:07]} Qxd4 {[%emt 0:00:48]} 37. Qxe6+ {[%emt 0:00:07]} Kh8 {[%emt 0:00:21]} 38. Qc8+ {[%emt 0:00:06]} Kh7 {[%emt 0:00:14]} 39. Qf5+ {[%emt 0:00:02]} g6 {[%emt 0:00:32]} 40. Qf7+ {[%emt 0:00:25] White mates.} Kh8 {[%emt 0:00:06]} 41. e6 {[%emt 0:00:17][%cal Be5e6,Be6e7][%mdl 32]} Qe4 {[%emt 0:00:44]} 42. e7 {[%emt 0:00:11] Weighted Error Value: White=0.16 (very precise) /Black=0.50} 1-0

[Event "31st MPL National U18G Chess-ch 2022"]
[Site "Pollachi"]
[Date "2022.04.18"]
[Round "2.5"]
[White "Rebecca Jesumarian"]
[Black "Padmini S"]
[Result "1-0"]
[ECO "A52"]
[WhiteElo "1814"]
[BlackElo "1306"]
[Annotator "NA RC"]
[PlyCount "53"]
[EventDate "2022.04.18"]
[EventCountry "IND"]
[SourceTitle "playchess.com"]
[Source "ChessBase"]
[SourceQuality "1"]
[TimeControl "5400+30"]

1. d4 {[%emt 0:00:40]} Nf6 {[%emt 0:00:16]} 2. c4 {[%emt 0:00:12]} e5 {[%emt 0:04:02]} 3. dxe5 {[%emt 0:01:38]} Ng4 {[%emt 0:00:11]} 4. e3 {[%emt 0:01:29]} Nxe5 {[%emt 0:00:14]} 5. Nc3 {[%emt 0:00:20]} d6 {[%emt 0:01:05]} 6. f4 {[%emt 0:13:55]} Nec6 {[%emt 0:03:24]} 7. Nf3 {[%emt 0:04:57]} g6 {[%emt 0:04:34]} 8. Bd3 {[%emt 0:02:44]} Bg7 {[%emt 0:02:22]} 9. O-O {[%emt 0:00:47]} Nd7 {[%emt 0:08:44]} 10. Nd5 {[%emt 0:10:24]} Nf6 {[%emt 0:03:53]} (10... O-O $11) 11. Qe1 {[%emt 0:03:53]} O-O {[%emt 0:07:07]} 12. Bd2 {[%emt 0:12:17]} Nxd5 {[%emt 0:02:58]} 13. cxd5 {[%emt 0:00:07]} Ne7 {[%emt 0:00:14]} 14. e4 {[%emt 0:00:24]} Bxb2 {[%emt 0:00:18]} 15. Rb1 {[%emt 0:13:11]} Bg7 $11 {[%emt 0:01:57]} 16. f5 {[%emt 0:00:41]} Re8 {[%emt 0:23:35]} 17. Qh4 {[%emt 0:05:37]} gxf5 {[%emt 0:02:01]} 18. Ng5 {[%emt 0:03:44]} h6 {[%emt 0:01:39]} 19. Nxf7 {[%emt 0:00:15]} Kxf7 {[%emt 0:01:56]} 20. Qh5+ {[%emt 0:00:15]} Kf8 {[%emt 0:01:55]} 21. exf5 {[%emt 0:04:18]} Ng8 {[%emt 0:02:28]} 22. f6 $1 {[%emt 0:01:32]} Nxf6 {[%emt 0:01:25]} 23. Qg6 {[%emt 0:00:41]} ({Less strong is} 23. Bc3 {[#]} Re5 $1 24. Bxe5 dxe5 $18) 23... Qe7 {[%emt 0:17:13]} 24. Bxh6 {[%emt 0:02:33]} Qf7 {[%emt 0:04:01]} 25. Rxf6 {[%emt 0:00:25]} Qxf6 {[%emt 0:00:26]} 26. Qxf6+ {[%emt 0:00:14]} Kg8 {[%emt 0:00:02]} 27. Qxg7# {[%emt 0:00:06]} 1-0

[Event "31st MPL National U18G Chess-ch 2022"]
[Site "Pollachi"]
[Date "2022.04.18"]
[Round "2.6"]
[White "Keerti Shree Reddy"]
[Black "Kavyasree T V S"]
[Result "1-0"]
[ECO "B01"]
[WhiteElo "1721"]
[BlackElo "1167"]
[Annotator "NA RC"]
[PlyCount "95"]
[EventDate "2022.04.18"]
[EventCountry "IND"]
[SourceTitle "playchess.com"]
[Source "ChessBase"]
[SourceQuality "1"]
[TimeControl "5400+30"]

1. e4 {[%emt 0:04:10]} d5 {[%emt 0:00:34]} 2. exd5 {[%emt 0:00:31]} Nf6 {[%emt 0:00:08]} 3. d4 {[%emt 0:00:17]} Bg4 {[%emt 0:00:06]} 4. Be2 {[%emt 0:00:50]} Bxe2 {[%emt 0:00:16]} 5. Nxe2 {[%emt 0:01:53]} Qxd5 {[%emt 0:00:31]} 6. O-O {[%emt 0:01:49]} Nc6 {[%emt 0:01:14]} 7. Nbc3 {[%emt 0:05:16]} Qh5 {[%emt 0:02:43]} 8. Qd3 {[%emt 0:13:20]} O-O-O {[%emt 0:07:31]} 9. a3 {[%emt 0:07:33]} e5 {[%emt 0:12:05]} 10. Ng3 {[%emt 0:11:32]} Qg4 {[%emt 0:04:59]} 11. d5 {[%emt 0:06:49]} Ne7 {[%emt 0:07:11]} 12. Be3 {[%emt 0:12:18]} a6 {[%emt 0:09:08]} 13. f4 {[%emt 0:04:32]} Nfxd5 {[%emt 0:02:49]} 14. Rad1 {[%emt 0:03:19]} Qg6 {[%emt 0:18:20]} 15. fxe5 {[%emt 0:06:59]} Qxd3 {[%emt 0:01:57]} 16. Rxd3 {[%emt 0:00:12]} Nxe3 {[%emt 0:01:07]} 17. Rxe3 {[%emt 0:00:27]} Nc6 {[%emt 0:00:49]} 18. Kh1 {[%emt 0:03:37]} Rd2 {[%emt 0:01:37]} 19. Rxf7 {[%emt 0:02:36]} Rxc2 {[%emt 0:02:45]} 20. e6 {[%emt 0:04:21]} Bc5 {[%emt 0:05:25]} 21. Re1 {[%emt 0:01:03]} Nd8 {[%emt 0:01:40]} 22. Rf5 {[%emt 0:00:37]} Be7 {[%emt 0:04:37]} 23. Nd5 {[%emt 0:00:49]} Nc6 {[%emt 0:00:20]} 24. Rf7 {[%emt 0:02:45]} Re8 {[%emt 0:00:35]} 25. Nf5 {[%emt 0:00:37]} Bf6 {[%emt 0:01:19]} 26. e7 {[%emt 0:02:25]} Kd7 {[%emt 0:00:40]} 27. Nxg7 {[%emt 0:01:55]} Bxg7 {[%emt 0:00:14]} 28. Rxg7 {[%emt 0:00:07]} Rf2 {[%emt 0:00:24]} 29. g4 {[%emt 0:01:33]} Nd4 {[%emt 0:00:42]} 30. Kg1 {[%emt 0:00:33]} Rf3 {[%emt 0:00:24]} 31. g5 {[%emt 0:00:19]} Rf5 {[%emt 0:01:05]} 32. Nf6+ {[%emt 0:00:28]} Kc8 {[%emt 0:00:15]} 33. Nxe8 {[%emt 0:00:34]} Nf3+ {[%emt 0:00:06]} 34. Kf1 {[%emt 0:00:18]} Nxe1+ {[%emt 0:00:16]} 35. Kxe1 {[%emt 0:00:00]} Re5+ {[%emt 0:00:11]} 36. Kf2 {[%emt 0:00:07]} Kd7 {[%emt 0:00:06]} 37. Nf6+ {[%emt 0:00:07]} Kc6 {[%emt 0:00:11]} 38. e8=Q+ {[%emt 0:02:52]} Rxe8 {[%emt 0:00:09]} 39. Nxe8 {[%emt 0:00:00]} Kb5 {[%emt 0:00:10]} 40. Rxc7 {[%emt 0:00:00]} b6 {[%emt 0:00:06]} 41. Rxh7 {[%emt 0:00:00]} Kc4 {[%emt 0:00:05]} 42. g6 {[%emt 0:00:00]} Kb3 {[%emt 0:00:04]} 43. g7 {[%emt 0:00:00]} Kxb2 {[%emt 0:00:07]} 44. g8=Q {[%emt 0:03:00]} Kxa3 {[%emt 0:00:11]} 45. Qc4 {[%emt 0:00:00]} b5 {[%emt 0:00:05]} 46. Qc3+ {[%emt 0:00:00]} Ka4 {[%emt 0:00:04]} 47. Ra7 {[%emt 0:00:00]} a5 {[%emt 0:00:08]} 48. Rxa5# {[%emt 0:00:00]} 1-0

[Event "31st MPL National U18G Chess-ch 2022"]
[Site "Pollachi"]
[Date "2022.04.18"]
[Round "2.7"]
[White "Yashvi Jain"]
[Black "Sachi Jain"]
[Result "0-1"]
[ECO "A90"]
[WhiteElo "1310"]
[BlackElo "1401"]
[Annotator "NA RC"]
[PlyCount "84"]
[EventDate "2022.04.18"]
[EventCountry "IND"]
[SourceTitle "playchess.com"]
[Source "ChessBase"]
[SourceQuality "1"]
[TimeControl "5400+30"]

1. d4 {[%emt 0:01:12]} d5 {[%emt 0:00:13]} 2. c4 {[%emt 0:00:39]} e6 {[%emt 0:00:13]} 3. Nf3 {[%emt 0:00:15]} f5 {[%emt 0:00:38]} 4. g3 {[%emt 0:00:28]} Nf6 {[%emt 0:00:16]} 5. Bg2 {[%emt 0:00:25]} c6 {[%emt 0:00:19]} 6. O-O {[%emt 0:00:39]} Bd6 {[%emt 0:00:18]} 7. b3 {[%emt 0:00:43]} Qe7 {[%emt 0:00:38]} 8. Ne5 {[%emt 0:00:30]} O-O {[%emt 0:00:14]} 9. Nd3 {[%emt 0:01:24]} Nbd7 {[%emt 0:03:45]} 10. Bf4 {[%emt 0:01:32]} Bxf4 {[%emt 0:00:59]} 11. Nxf4 {[%emt 0:01:16]} g5 {[%emt 0:02:09]} 12. Nd3 {[%emt 0:00:59]} Qf7 {[%emt 0:00:53]} 13. Nc3 {[%emt 0:01:18]} h5 {[%emt 0:04:01]} 14. Ne5 {[%emt 0:01:05]} Qg7 {[%emt 0:00:58]} 15. e3 {[%emt 0:01:09]} Nxe5 {[%emt 0:02:58]} 16. dxe5 {[%emt 0:00:38]} Ng4 {[%emt 0:00:03]} 17. h3 {[%emt 0:00:49]} Nxe5 {[%emt 1:20:25]} 18. cxd5 {[%emt 0:00:45]} exd5 {[%emt 0:00:00]} 19. Qxh5 {[%emt 0:00:30]} Be6 {[%emt 0:00:00]} 20. Rfd1 {[%emt 0:00:55]} g4 {[%emt 0:00:00]} 21. hxg4 {[%emt 0:01:35]} Nxg4 {[%emt 0:00:00]} 22. Ne2 {[%emt 0:00:41]} Rf6 {[%emt 0:00:00]} 23. Nf4 {[%emt 0:02:06]} Bf7 {[%emt 0:00:00]} 24. Qh1 {[%emt 0:02:29]} Re8 {[%emt 0:00:00]} 25. Re1 {[%emt 0:02:24]} Rh6 {[%emt 0:00:00]} 26. Bh3 {[%emt 0:03:23]} d4 {[%emt 0:00:00]} 27. exd4 {[%emt 0:05:58]} Qxd4 {[%emt 0:00:00]} 28. Qf3 {[%emt 0:00:37]} Ne5 {[%emt 0:00:00]} 29. Qe3 {[%emt 0:03:36]} Qb4 {[%emt 0:00:00]} 30. Red1 {[%emt 0:17:02]} Ng6 {[%emt 0:00:00]} 31. Rd4 {[%emt 0:03:48]} Qb6 {[%emt 0:00:00]} 32. Qc3 {[%emt 0:03:03]} Nxf4 {[%emt 0:00:00]} 33. Rxf4 {[%emt 0:04:29]} Rxh3 {[%emt 0:00:00]} 34. Rxf5 {[%emt 0:00:12]} Rh6 {[%emt 0:00:00]} 35. Rd1 {[%emt 0:01:38]} Qc7 {[%emt 0:00:00]} 36. Rd4 {[%emt 0:01:17]} Qe7 {[%emt 0:00:00]} 37. Kg2 {[%emt 0:07:19]} Bd5+ {[%emt 0:00:00]} 38. Rfxd5 {[%emt 0:00:53]} cxd5 {[%emt 0:00:00]} 39. Rg4+ {[%emt 0:00:09]} Kh7 {[%emt 0:00:00]} 40. Qd3+ {[%emt 0:00:59]} Kh8 {[%emt 0:00:00]} 41. Qd4+ {[%emt 0:00:41]} Qe5 {[%emt 0:00:00]} 42. Qxa7 {[%emt 0:01:22]} Qa1 {[%emt 0:00:00]} 0-1

[Event "31st MPL National U18G Chess-ch 2022"]
[Site "Pollachi"]
[Date "2022.04.19"]
[Round "3.1"]
[White "Jyothsna L"]
[Black "Khairmode Dhanashree"]
[Result "*"]
[ECO "A30"]
[WhiteElo "2052"]
[BlackElo "1438"]
[Annotator "TA"]
[PlyCount "64"]
[EventDate "2022.04.18"]
[EventCountry "IND"]
[SourceTitle "playchess.com"]
[Source "ChessBase"]
[SourceQuality "1"]
[TimeControl "5400+30"]

{[%evp 18,64,67,64,73,60,60,47,53,27,27,14,63,60,60,50,49,45,46,41,45,0,13,0,0,0,58,51,66,24,23,0,0,-10,-8,-5,0,-16,-2,-64,0,-62,0,-9,13,-53,0,-91,-58]} 1. b3 {[%emt 0:01:18]} Nf6 {[%emt 0:00:12]} 2. Bb2 {[%emt 0:00:03]} g6 {[%emt 0:00:07]} 3. g3 {[%emt 0:08:45]} Bg7 {[%emt 0:00:54]} 4. Bg2 {[%emt 0:00:03]} O-O {[%emt 0:00:35]} 5. c4 {[%emt 0:01:22]} c5 {[%emt 0:04:32]} 6. Nf3 {[%emt 0:00:27]} Nc6 {[%emt 0:00:50]} 7. O-O {[%emt 0:00:20]} b6 {[%emt 0:00:45]} 8. Nc3 {[%emt 0:12:04]} Bb7 {[%emt 0:05:25]} 9. d4 {[%emt 0:20:17]} cxd4 {[%emt 0:11:47]} 10. Nxd4 {[%emt 0:00:41]} Rc8 {[%emt 0:00:41] The main line 10...Rc8 scores better than 10...Qc8. A30: Symmetrical English: Double Fianchetto and Hedgehog.} 11. Qd2 {[%emt 0:07:11] &Bianco is more active.} d6 {[%emt 0:07:56]} 12. Nxc6 {[%emt 0:09:10]} Bxc6 {[%emt 0:00:04] [#] White is slightly better.} 13. e4 $146 {[%emt 0:00:21]} ({Predecessor:} 13. Bxc6 Rxc6 14. e4 Qd7 15. Rad1 Rfc8 16. Rfe1 h5 17. e5 Ng4 18. Nd5 e6 19. Nb4 Rc5 20. exd6 a5 21. Bxg7 Kxg7 22. Nd3 R5c6 {1-0 (22) Grover,S (2490)-Van Zyl Rudd,J (2252) Pretoria 2018}) 13... Nd7 {[%emt 0:03:20]} 14. Rad1 {[%emt 0:03:37]} Qc7 {[%emt 0:10:17]} (14... a6 $11) 15. Nd5 $14 {[%emt 0:04:20]} Bxd5 {[%emt 0:00:35]} 16. exd5 {[%emt 0:00:00]} Bxb2 {[%emt 0:05:00]} 17. Qxb2 {[%emt 0:00:00]} Qc5 {[%emt 0:01:33]} 18. Qe2 {[%emt 0:00:00]} Rfe8 {[%emt 0:44:57]} 19. Kh1 {[%emt 0:00:00]} Rc7 {[%emt 0:17:59]} 20. f4 {[%emt 0:00:00]} a6 {[%emt 0:07:59]} 21. Bh3 {[%emt 0:00:00]} Nf8 {[%emt 0:05:54]} (21... Nf6 $11) 22. f5 {[%emt 0:00:00]} b5 {[%emt 0:00:23][%cal Rb5c4]} 23. fxg6 {[%emt 0:00:00]} hxg6 {[%emt 0:00:05][%cal Rb5c4]} 24. cxb5 {[%emt 0:01:21]} axb5 {[%emt 0:05:59]} 25. Qf3 {[%emt 0:00:23]} f6 {[%emt 0:00:05]} 26. Qe2 {[%emt 0:02:00][%cal Of1f6]} Ra8 {[%emt 0:00:32]} 27. Rd2 {[%emt 0:00:23]} Kg7 {[%emt 0:04:01]} 28. Re1 {[%emt 0:00:35]} (28. Bg4 $11) 28... Qc3 {[%emt 0:01:14]} (28... Nh7 $15) 29. Qd1 {[%emt 0:01:15]} (29. Rd3 $11 Qa5 30. Re3) 29... b4 {[%emt 0:01:53]} (29... Nh7 $15) 30. Bf1 {[%emt 0:00:22]} Qc5 {[%emt 0:00:40]} 31. Bh3 {[%emt 0:00:35]} ({Better is} 31. h4 $11) 31... Ra5 {[%emt 0:00:20]} (31... Nh7 $15) 32. Re4 {[%emt 0:00:30]} (32. Bg2 $11) 32... Qa7 {[%emt 0:00:48] Weighted Error Value: White=0.32/Black=0.18 (very precise)} *

[Event "31st MPL National U18G Chess-ch 2022"]
[Site "Pollachi"]
[Date "2022.04.19"]
[Round "3.2"]
[White "Vakcheri Mohitha"]
[Black "Bhagyashree Patil"]
[Result "0-1"]
[ECO "E12"]
[WhiteElo "1459"]
[BlackElo "1974"]
[Annotator "TA"]
[PlyCount "102"]
[EventDate "2022.04.18"]
[EventCountry "IND"]
[SourceTitle "playchess.com"]
[Source "ChessBase"]
[SourceQuality "1"]
[TimeControl "5400+30"]

{[%evp 12,102,25,8,10,15,4,0,0,0,0,0,0,0,-2,0,4,1,20,14,16,11,16,10,6,0,0,0,0,0,0,0,0,0,50,63,61,61,548,488,540,540,533,308,354,354,354,354,354,354,354,354,347,347,347,339,456,348,548,536,642,642,642,640,632,554,551,551,683,667,732,630,589,515,677,505,781,740,1595,1176,1124,868,955,955,817,-78,-78,-78,-78,-5561,-5505,-5517,-1399]} 1. d4 {[%emt 0:00:02]} d5 {[%emt 0:00:08]} 2. c4 {[%emt 0:00:05]} e6 {[%emt 0:00:09]} 3. Nc3 {[%emt 0:00:05]} Nf6 {[%emt 0:00:07]} 4. Bg5 {[%emt 0:00:06]} Be7 {[%emt 0:00:05]} 5. e3 {[%emt 1:32:42]} b6 {[%emt 0:01:49]} 6. Nf3 {[%emt 0:00:00]} Bb7 {[%emt 0:00:06]} 7. Bd3 {[%emt 0:00:00]} Nbd7 {[%emt 0:00:15] E12: Queen's Indian: Unusual White 4th moves, 4 a3, 4 Nc3 Bb7 5 a3 and 4 Nc3 Bb7 .} 8. cxd5 {[%emt 0:00:00]} Nxd5 {[%emt 0:01:18]} 9. Bxe7 {[%emt 0:00:00]} Qxe7 {[%emt 0:00:13] The position is equal.} 10. O-O {[%emt 0:00:00]} O-O {[%emt 0:02:09]} 11. Qe2 {[%emt 0:00:00]} c5 {[%emt 0:02:10]} 12. Ba6 {[%emt 0:00:00]} Bxa6 {[%emt 0:06:03]} 13. Qxa6 {[%emt 0:00:00] [#]} N7f6 $146 {[%emt 0:00:20][%cal Bd7f6,Bf6d5,Bd5c3,Bc3e2][%mdl 32]} ({Predecessor:} 13... Nb4 14. Qa4 cxd4 15. Nxd4 Nf6 16. Rad1 Nbd5 17. Nxd5 Nxd5 18. a3 Rfc8 19. Rc1 Qb7 {½-½ (27) Issakainen,A (2216)-Seppanen,A (2199) Finland 2000}) 14. Nxd5 {[%emt 0:00:00]} Nxd5 {[%emt 0:00:11]} 15. Rac1 {[%emt 0:00:00]} Rfc8 {[%emt 0:01:35]} 16. a3 {[%emt 0:00:00]} Rc7 {[%emt 0:00:46]} 17. dxc5 {[%emt 0:00:00]} Rxc5 {[%emt 0:00:30]} 18. b4 {[%emt 0:00:00]} Rc7 {[%emt 0:00:35]} 19. Nd4 {[%emt 0:00:00]} Nc3 {[%emt 0:01:46]} 20. Rc2 {[%emt 0:00:00] [#] And now Rfc1 would win.} e5 {[%emt 0:04:08]} 21. Nf5 {[%emt 0:00:00]} Qd7 {[%emt 0:02:56]} 22. Rfc1 {[%emt 0:00:00]} b5 {[%emt 0:12:24] [#]} 23. Qd6 $1 $14 {[%emt 0:00:00]} Ne2+ $1 {[%emt 0:04:18]} 24. Kf1 {[%emt 0:00:00]} Rxc2 $4 {[%emt 0:01:56][%mdl 8192]} (24... Nxc1 $14 25. Rxc7 Qxf5 26. Rxc1 Re8) 25. Qxd7 $18 {[%emt 0:00:00]} Nxc1 {[%emt 0:00:38]} 26. g3 {[%emt 0:00:00]} a6 {[%emt 0:08:42]} 27. Qb7 {[%emt 0:00:00]} ({Weaker is} 27. Qd5 Re8 28. Ne7+ Kf8 $18) 27... Rf8 {[%emt 0:05:21]} 28. Qe4 {[%emt 0:00:00] Inhibits Nd3.} ({Not} 28. Qxa6 Nd3 29. f4 (29. Qxb5 Rxf2+ 30. Kg1 Rd2 $11) 29... g6 $11) 28... Rd2 {[%emt 0:08:19]} 29. Qxe5 {[%emt 0:00:00][%csl Gf5][%cal Re5g7]} Rxf2+ {[%emt 0:00:18]} 30. Kg1 {[%emt 0:00:00][%csl Gf5][%cal Re5g7]} Rxf5 {[%emt 0:00:18]} 31. Qxf5 {[%emt 0:00:00][%mdl 4096] Endgame KQ-KRN} Ne2+ {[%emt 0:00:19]} 32. Kf2 {[%emt 0:00:00]} Nc3 {[%emt 0:00:05]} 33. Qd7 {[%emt 0:00:00]} Ne4+ {[%emt 0:01:43]} 34. Kg2 {[%emt 0:00:00]} h6 {[%emt 0:02:09]} (34... g6 $142 35. g4 Ng5) 35. Qc6 {[%emt 0:00:00][%csl LRa6,LRe4]} Ng5 {[%emt 0:00:22]} 36. h4 {[%emt 0:00:31]} Ne6 {[%emt 0:00:18]} 37. Qxa6 {[%emt 0:00:41]} Rb8 {[%emt 0:00:07]} 38. a4 {[%emt 0:01:53]} bxa4 {[%emt 0:00:27]} 39. Qxa4 {[%emt 0:00:07]} Kh7 {[%emt 0:00:27]} 40. b5 {[%emt 0:01:03]} g6 {[%emt 0:00:39]} 41. Qc4 {[%emt 0:02:38]} Rb6 {[%emt 0:01:00]} 42. Qd5 {[%emt 0:01:19]} h5 {[%emt 0:03:27]} 43. Kf3 {[%emt 0:02:28]} Kg8 {[%emt 0:04:52]} (43... Kg7 $142 44. Qc4 Kf8 45. Qb4+ Ke8) 44. Qa8+ {[%emt 0:00:22]} Kg7 {[%emt 0:01:21]} 45. Qa5 {[%emt 0:00:10]} Rb7 {[%emt 0:00:17]} 46. Qa6 {[%emt 0:01:37]} Re7 {[%emt 0:01:05]} 47. Qc8 {[%emt 0:01:06] Threatens to win with b6.} Rc7 {[%emt 0:00:58]} 48. Qxc7 $2 {[%emt 0:00:30]} Nxc7 $17 {[%emt 0:00:16]} 49. b6 {[%emt 0:00:05]} Na6 {[%emt 0:00:53] Hoping for ...Nc5.} 50. Kf4 $2 {[%emt 0:00:15][%mdl 8192]} (50. Ke4 $17) 50... Nc5 $19 {[%emt 0:01:24]} 51. Ke5 {[%emt 0:00:39]} Nd7+ {[%emt 0:00:06] Never resign too early!  Weighted Error Value: White=0.57/Black=0.52} 0-1